{"text_format":"1","workbook":"xlsx","n_sheets":2,"sheets":["Pasiūlymas","Subtiekėjai"],"not_rendered":{"charts":0,"images":0,"macros":1,"external_links":0,"defined_names":0,"comments":0,"pivot_tables":0},"unopened":[],"bounds":{"document_bytes":16777216,"sheet_cells":100000,"rows_first":2000,"rows_last":500,"rows_between":2000,"halvings":0,"cell_chars":16384,"cell_head_chars":4096},"cells_cut":0,"cells_raw":0,"read":"whole","date_system":"1900"}

{"sheet":"Pasiūlymas","index":0,"n_rows":300,"n_cols":13,"rows_kept":300,"cut":false,"hidden":false,"merged":[[18,0,18,1],[18,2,18,4],[19,0,19,1],[19,2,19,4],[15,0,15,1],[15,2,15,4],[16,0,16,1],[16,2,16,4],[17,0,17,1],[17,2,17,4],[12,0,12,1],[12,2,12,4],[13,0,13,1],[13,2,13,4],[14,0,14,1],[14,2,14,4],[9,0,9,1],[9,2,9,4],[10,0,10,1],[10,2,10,4],[11,0,11,1],[11,2,11,4],[28,1,28,6],[71,1,71,6],[82,1,82,6],[94,1,94,6],[108,1,108,6],[124,1,124,6],[134,1,134,6],[151,1,151,6],[170,1,170,6],[183,1,183,6],[264,1,264,6],[285,1,285,6],[197,1,197,6],[211,1,211,6],[225,1,225,6],[240,1,240,6],[250,1,250,6]]}
["Perkantysis subjektas, kuriam teikiamas pasiūlymas:",null,"VŠĮ Kauno klinikinė ligoninė"]
[]
[null,"PASIŪLYMAS"]
[null,"Endoskopiniai priedai procedūroms"]
[]
["Data:","2019-11-22"]
["Nr.:",457624]
["Vieta:","Vilnius"]
[]
["Tiekėjo arba tiekėjų grupės narių pavadinimas (-ai)",null,"Ilsanta"]
["Tiekėjo arba tiekėjo grupės narių juridinio asmens kodas (-ai) (tuo atveju, jei pasiūlymą teikia fizinis asmuo - verslo pažymėjimo Nr. ar pan.)",null,110498671]
["Tiekėjo arba tiekėjo grupės narių PVM mokėtojo kodas (-ai)",null,"LT104986716"]
["Tiekėjų grupės narys, atstovaujantis arba vadovaujantis  tiekėjų grupei (pildoma, jei pasiūlymą teikia tiekėjų grupė)"]
["Tiekėjo valdymo ar priežiūros organo narys (-iai) ar kitas asmuo (-ys), turintis (-ys) teisę atstovauti tiekėjui ar jį kontroliuoti, jo vardu priimti sprendimą, sudaryti sandorį",null,"Sandra Čaikė"]
["Tiekėjo arba atstovaujančio tiekėjų grupės nario adresas, telefono numeris, fakso numeris, el. paštas",null,"Saltoniškių g.29,08105 Vilnius"]
["Tiekėjo arba atstovaujančio tiekėjų grupės nario banko pavadinimas, banko kodas, sąskaitos Nr.",null,"Luminor bankas, kodas 40100, A.s.LT254010042401605375"]
["Asmens, įgalioto pasirašyti sutartį, vardas, pavardė, pareigos",null,"Generalinis direktorius Tomas Godelis"]
["Asmens, atsakingo už pirkimą, vardas, pavardė,  telefono numeris, el. paštas",null,"Indre Vilkauskiene, 868950580, indre@ilsanta.lt"]
[]
[]
[]
[]
[]
["Siūlomas pirkimo objektas visiškai atitinka pirkimo sąlygose nustatytus reikalavimus ir jo kaina yra:"]
[]
[]
[null,null,null,null,null,null,null,null,null,null,"","",""]
["Nr.","Pavadinimas","Maksimalus kiekis","Mato vienetas","Vnt. įkainis be PVM, Eur","Suma be PVM, Eur","Siūlomo produkto parametrai, gamintojas"]
["1.","Endoskopiniai priedai Olympus Exera II/III aparatūrai",null,null,null,null,null,null,null,""]
["1.1.","Biopsinės angos vožtuvėliai ",30,"kompl.",null,{"$f":"IF(ISBLANK(E30),\"\", PRODUCT(C30,E30))","v":""}]
["1.1.1.","Biopsinės angos vožtuvai, (10 vnt./kompl.)"]
["1.1.2.","Skirti biopsinio kanalo vaizdo Olympus EVIS 145, 160, 165 ir 185 serijos vaizdo endoskopams gastroskopams, kolonoskopams",null,null,null,null,null,null,null,""]
["1.1.3.","Daugkartiniai",null,null,null,null,null,null,null,null,null,""]
["1.2.","Oro/vandens vožtuvas",5,"vnt.",null,{"$f":"IF(ISBLANK(E34),\"\", PRODUCT(C34,E34))","v":""},null,null,null,null,null,""]
["1.2.1.","Oro/vandens vožtuvas Olympus gamintojo EVIS 145, 165 ir 185 serijos, vaizdo endoskopams",null,null,null,null,null,null,null,"","",""]
["1.2.2.","Daugkartiniai",null,null,null,null,null,null,null,"","",""]
["1.3.","Atsiurbimo vožtuvas",5,"vnt.",null,{"$f":"IF(ISBLANK(E37),\"\", PRODUCT(C37,E37))","v":""},null,null,null,"","",""]
["1.3.1.","Olympus gamintojo EVIS 145, 165 ir 185 serijos vaizdo endoskopams"]
["1.4.","Elektrinių kontaktų dangtelis",2,"vnt.",null,{"$f":"IF(ISBLANK(E39),\"\", PRODUCT(C39,E39))","v":""}]
["1.4.1.","Elektrinių kontaktų dangtelis  Olympus gamintojo EVIS 145, 165 serijos vaizdo endoskopams",null,null,null,null,null,null,null,""]
["1.5.","Filtrai",100,"vnt.",null,{"$f":"IF(ISBLANK(E41),\"\", PRODUCT(C41,E41))","v":""}]
["1.5.1.","Olympus gamintojo vakuuminiams siurbliams, Olympus  KV-5",null,null,null,null,null,null,null,null,null,""]
["1.6.","Vandens bakelis",2,"vnt.",null,{"$f":"IF(ISBLANK(E43),\"\", PRODUCT(C43,E43))","v":""},null,null,null,"",null,""]
["1.6.1.","Olympus gamintojo EVIS 145, 165 ir 185 serijos, vaizdo endoskopams",null,null,null,null,null,null,null,null,null,""]
["1.7.","Injektorių gastroskopijai komplektas",10,"kompl.",null,{"$f":"IF(ISBLANK(E45),\"\", PRODUCT(C45,E45))","v":""}]
["1.7.1.","Vienkartinės sterilios adatos ( 6 vnt.)",null,null,null,null,null,null,null,"","",""]
["1.7.2.","Adatos ilgis 4-5 mm",null,null,null,null,null,null,null,"","",""]
["1.7.3.","Adatos dydis 23G (0,6mm)",null,null,null,null,null,null,null,"","",""]
["1.7.4.","Tinkamos prie daugkartinio šarvo MAJ-68."]
["1.8.","Injektorių kolonoskopijai komplektas",10,"kompl.",null,{"$f":"IF(ISBLANK(E50),\"\", PRODUCT(C50,E50))","v":""}]
["1.8.1.","Vienkartinės sterilios adatos ( 6 vnt.)"]
["1.8.2.","Adatos ilgis 4-5 mm"]
["1.8.3.","Adatos dydis 23G (0,6mm)"]
["1.8.4.","Tinkamos prie daugkartinio šarvo MAJ-69"]
["1.9.","Siurbimo kanalo vožtuvas bonchoskopui",20,"vnt.",null,{"$f":"IF(ISBLANK(E55),\"\", PRODUCT(C55,E55))","v":""}]
["1.9.1.","Siurbimo kanalo vožtuvas bonchoskopui Olympus gamintojo EVIS 180 serijos, vaizdo endoskopams"]
["1.9.2.","Vienkartinis "]
["1.9.3.","Sterili pakuotė"]
["1.10.","Siurbimo kanalo vožtuvas bonchoskopui",2,"vnt.",null,{"$f":"IF(ISBLANK(E59),\"\", PRODUCT(C59,E59))","v":""}]
["1.10.1.","Siurbimo kanalo vožtuvas bonchoskopui Olympus gamintojo EVIS 180 serijos vaizdo endoskopams"]
["1.10.2.","Daugkartinis"]
["1.11.","Biopsinės angos vožtuvas bonchoskopui",10,"vnt.",null,{"$f":"IF(ISBLANK(E62),\"\", PRODUCT(C62,E62))","v":""}]
["1.11.1.","Biopsinės angos vožtuvas bonchoskopui Olympus gamintojo EVIS 180 serijos vaizdo endoskopams"]
["1.11.2.","Daugkartinis"]
["1.12.","Kilputės svetimkūnių šalinimui bronchoskopijos metu",2,"vnt.",null,{"$f":"IF(ISBLANK(E65),\"\", PRODUCT(C65,E65))","v":""}]
["1.12.1.","Daugkartinės"]
["1.12.2.","Sterilizuojamos"]
[null,null,null,null,"Suma be PVM",{"$f":"IF((COUNT(C30:C67)<>COUNT(F30:F67)),\"\", SUM(F30:F67))","v":""},{"$f":"IF((COUNT(C30:C67)<>COUNT(F30:F67)),\"Neužpildytos visų objektų kainos\", \"\")","v":"Neužpildytos visų objektų kainos"}]
[null,null,null,null,"PVM suma"]
[null,null,null,null,"Suma su PVM",{"$f":"IF(ISBLANK(F69), \"\", SUM(F68:F69))","v":""}]
[]
["2.","Endoskopiniai adatiniai injektoriai skirti skleroterapijai"]
["2.1.","Endoskopiniai adatiniai injektoriai skirti skleroterapijai",50,"vnt.",35,{"$f":"IF(ISBLANK(E73),\"\", PRODUCT(C73,E73))","v":1750}]
["2.1.1.","Vienkartinis",null,null,null,null,"Boston Scientific, Interject M0051815-M0051836*, Vienkartinis"]
["2.1.2.","Darbinis ilgis ne trumpesnis nei 2000-2400 mm",null,null,null,null,"Darbinis ilgis 24000-2400 mm"]
["2.1.3.","Adatos diametras 23G arba 25G pagal poreikį",null,null,null,null,"Adatos diametras 23G arba 25 G pagal poreiki"]
["2.1.4.","Adatos ilgis 4 - 6 mm",null,null,null,null,"Adatos ilgis 4-6 mm"]
["2.1.5.","Adata atspari kateterio užsilenkimui",null,null,null,null,"Adata atspari kateterio uzsilenkimui"]
[null,null,null,null,"Suma be PVM",{"$f":"IF((COUNT(C73:C78)<>COUNT(F73:F78)),\"\", SUM(F73:F78))","v":1750},{"$f":"IF((COUNT(C73:C78)<>COUNT(F73:F78)),\"Neužpildytos visų objektų kainos\", \"\")","v":""}]
[null,null,null,null,"PVM suma",{"$f":" (1750*1.05)-1750","v":87.5}]
[null,null,null,null,"Suma su PVM",{"$f":"IF(ISBLANK(F80), \"\", SUM(F79:F80))","v":1837.5}]
[]
["3.","Endoskopiniai adatiniai injektoriai"]
["3.1.","Endoskopiniai adatiniai injektoriai",220,"vnt.",34,{"$f":"IF(ISBLANK(E84),\"\", PRODUCT(C84,E84))","v":7480}]
["3.1.1.","Veinakrtinai",null,null,null,null,"Boston Scientific, Interject needle, M0051815-M0051836, Vienkartiniai"]
["3.1.2.","Dabinis ilgis 240 +- 5 cm",null,null,null,null,"Darbinis ilgis 240 cm"]
["3.1.3.","Adatos diametras  ne daugiau 0.7mm",null,null,null,null,"Adatos diametras 0.7 mm"]
["3.1.4.","Adatos ilgis ne daugiau 5 mm",null,null,null,null,"Adatos ilgis 5 mm"]
["3.1.5.","Su adatos fiksacija",null,null,null,null,"Su adatos fiksacija"]
["3.1.6.","Tinkantys endoskopo 2,8 mm darbiniam kanalui",null,null,null,null,"Tinkamntys endoskopo 2,8 mm darbiniam kanalui"]
[null,null,null,null,"Suma be PVM",{"$f":"IF((COUNT(C84:C90)<>COUNT(F84:F90)),\"\", SUM(F84:F90))","v":7480},{"$f":"IF((COUNT(C84:C90)<>COUNT(F84:F90)),\"Neužpildytos visų objektų kainos\", \"\")","v":""}]
[null,null,null,null,"PVM suma",{"$f":"(7480*1.05)-7480","v":374}]
[null,null,null,null,"Suma su PVM",{"$f":"IF(ISBLANK(F92), \"\", SUM(F91:F92))","v":7854}]
[]
["4.","Biopsinės žnyplės"]
["4.1.","Biopsinės žnyplės",500,"vnt.",7,{"$f":"IF(ISBLANK(E96),\"\", PRODUCT(C96,E96))","v":3500}]
["4.1.1.","Vienkartinės",null,null,null,null,"Boston Scientific, Radial Jaw/Jaw 4 jumbo, M00513383-M00513412, M00513305-M00513332, M00513343-M00513372, Vienkartines"]
["4.1.2.","Su adata arba be jos",null,null,null,null,"Su adata arba be jos"]
["4.1.3.","Kaušeliai standartiniai arba dideli, turintys dantukus per visą kaušelio kraštą",null,null,null,null,"Kauseliai standartiniai arba dideli, turintys dantukus per visa kauselio krasta"]
["4.1.4.","Atsidarymo kampas ne mažesnis nei 180°",null,null,null,null,"Atsidarymo kampas 180"]
["4.1.5.","Žnyplių kateterio apvalkalas yra sugraduotas",null,null,null,null,"Znypliu kateterio apvalkalas yra sugraduotas"]
["4.1.6.","Žnyplės tinkančios endoskopui, kurio kanalo diametras 2,8 mm",null,null,null,null,"Znyples tinkancios endoskopui, kurio kanalo diametras 2,8 mm"]
["4.1.7.","Prietaiso darbinis ilgis ne trumpesnis nei 240 cm",null,null,null,null,"Prietaiso darbinis ilgis 240 cm"]
["4.1.8.","Aligatoriaus tipo",null,null,null,null,"Aligatoriaus tipo"]
[null,null,null,null,"Suma be PVM",{"$f":"IF((COUNT(C96:C104)<>COUNT(F96:F104)),\"\", SUM(F96:F104))","v":3500},{"$f":"IF((COUNT(C96:C104)<>COUNT(F96:F104)),\"Neužpildytos visų objektų kainos\", \"\")","v":""}]
[null,null,null,null,"PVM suma",{"$f":"(3500*1.05)-3500","v":175}]
[null,null,null,null,"Suma su PVM",{"$f":"IF(ISBLANK(F106), \"\", SUM(F105:F106))","v":3675}]
[]
["5.","Polipektominė kilpa"]
["5.1.","Polipektominė kilpa",250,"vnt.",16,{"$f":"IF(ISBLANK(E110),\"\", PRODUCT(C110,E110))","v":4000}]
["5.1.1.","Vienkartinė",null,null,null,null,"Boston Scientific, Captivator/Captivator II, M00562301-M00562371, M00561221-M00561291, vienkartine"]
["5.1.2.","Sterili pakuotė",null,null,null,null,"Sterili pakuote"]
["5.1.3.","Tinkamos endoskopui, kurio darbinis kanalas 2,8 mm",null,null,null,null,"Tinkamos endoskopui, kurio darbinis kanalas 2,8 mm"]
["5.1.4.","Tinkamos endoskopui, kurio darbinis kanalas 2,8 mm",null,null,null,null,"Tinkamos endoskopui, kurio darbinis kanalas 2,8 mm"]
["5.1.5.","Kilpos šerdis tvirtai supinta iš 7 vielučių",null,null,null,null,"Kilpos serdis tvirtai supinta is 7 vieluciu"]
["5.1.6.","Turi plastikinę rankeną su integruotu rotaciniu mechanizmu",null,null,null,null,"Turi plastikine rankena su integruotu rotaciniu mechanizmu"]
["5.1.7.","Galimi išskleistos kilpos dydžiai nuo 10 iki 33 mm",null,null,null,null,"Galimi išskleistos kilpos dydziai nuo 10 iki 33 mm"]
["5.1.8.","Instrumento ilgis ne trumpesnis nei 240 cm",null,null,null,null,"Instrumento ilgis 240 cm"]
["5.1.9.","Turi turėti kabelio pajungimo lizdą, karštai polipektomijai atlikti",null,null,null,null,"Turi kablio pajungimo lizda, karstai polipektomijai atlikti"]
["5.1.10.","Kilpa, tinkanti naudoti tiek šaltu, tiek karštu būdu",null,null,null,null,"Kilpa, tinka naudoti tiek saltu, tiek karstu budu"]
[null,null,null,null,"Suma be PVM",{"$f":"IF((COUNT(C110:C120)<>COUNT(F110:F120)),\"\", SUM(F110:F120))","v":4000},{"$f":"IF((COUNT(C110:C120)<>COUNT(F110:F120)),\"Neužpildytos visų objektų kainos\", \"\")","v":""}]
[null,null,null,null,"PVM suma",{"$f":"(4000*1.05)-4000","v":200}]
[null,null,null,null,"Suma su PVM",{"$f":"IF(ISBLANK(F122), \"\", SUM(F121:F122))","v":4200}]
[]
["6.","Hemostatiniai klipai"]
["6.1.","Klipai kraujavimo stabdymui",800,"vnt.",96,{"$f":"IF(ISBLANK(E126),\"\", PRODUCT(C126,E126))","v":76800}]
["6.1.1.","Vienakrtinai",null,null,null,null,"Boston Scientific, Resolution 360, M0052120-M00521243, vienkartinai"]
["6.1.2.","Sterilūs",null,null,null,null,"Sterilus"]
["6.1.3."," Klipo atidarymo kampas 135°",null,null,null,null,"Klipo atidarymo kampas 135"]
["6.1.4.","Klipo ilgis 7-9 mm",null,null,null,null,"Klipo ilgis 7-9 mm"]
[null,null,null,null,"Suma be PVM",{"$f":"IF((COUNT(C126:C130)<>COUNT(F126:F130)),\"\", SUM(F126:F130))","v":76800},{"$f":"IF((COUNT(C126:C130)<>COUNT(F126:F130)),\"Neužpildytos visų objektų kainos\", \"\")","v":""}]
[null,null,null,null,"PVM suma",{"$f":"(76800*1.05)-76800","v":3840}]
[null,null,null,null,"Suma su PVM",{"$f":"IF(ISBLANK(F132), \"\", SUM(F131:F132))","v":80640}]
[]
["7.","Balioninis dilatatorius, stemplinis, prievarčio, biliarinis ir koloninis"]
["7.1.","Balioninis dilatatorius, stemplinis, prievarčio, biliarinis ir koloninis",20,"vnt.",159,{"$f":"IF(ISBLANK(E136),\"\", PRODUCT(C136,E136))","v":3180}]
["7.1.1.","Vienkartinis",null,null,null,null,"Boston Scientific, CRE Pro dilators, M00558660-M00558710, vienkartinis"]
["7.1.2.","Sterili pakuotė",null,null,null,null,"Sterili pakuote"]
["7.1.3.","Balionas turi turėti rentgeno kontrastines žymes",null,null,null,null,"Balionas turi tureti rentgeno kontrastines zymes"]
["7.1.4.","Dvikanalis distalinis galas. Vienas skirtas balionui pripūsti, kitas – pravedėjui",null,null,null,null,"Dvikanalis distalinis galas Vienas skirtas balionui pripusti, kitas-pravedejui"]
["7.1.5.","Pravedėjas turi būti rinkinyje su balionu, 0,0035¨ dydžio",null,null,null,null,"Pravedejas rinkinyje su alionu 0,0035\" dydzio"]
["7.1.6.","Ant kataeterio yra informacinė nuoroda apie baliono dydžius",null,null,null,null,"Ant kateterio yra informacine nuoroda apie baliono dydzius"]
["7.1.7.","Ant kataeterio yra informacinė nuoroda apie baliono dydžius",null,null,null,null,"Ant kateterio yra informacine nuoroda apie baliono dydzius"]
["7.1.8.","Darbinis kateterio ilgis ne mažesnis nei 240cm",null,null,null,null,"Darbinis kateterio ilgis 240 cm"]
["7.1.9.","Tinkantis 2,8mm endoskopo darbiniam kanalui",null,null,null,null,"Tinkantis 2,8mm endoskopo  kanalui"]
["7.1.10.","Išpūsto baliono ilgis ne mažesnis nei 4 cm",null,null,null,null,"Išpūsto baliono ilgis 4  cm"]
["7.1.11.","Galimi keletas baliono diametrų: 6-8 mm, 8-10 mm, 12-15 mm, 18-20 mm arba ekvivalentiški",null,null,null,null,"Galimi keletas baliono mm, 8-10 mm, 12-15 mm, 18-20 mm arba  ekvivalentiški"]
[null,null,null,null,"Suma be PVM",{"$f":"IF((COUNT(C136:C147)<>COUNT(F136:F147)),\"\", SUM(F136:F147))","v":3180},{"$f":"IF((COUNT(C136:C147)<>COUNT(F136:F147)),\"Neužpildytos visų objektų kainos\", \"\")","v":""}]
[null,null,null,null,"PVM suma",{"$f":"(3180*1.05)-3180","v":159}]
[null,null,null,null,"Suma su PVM",{"$f":"IF(ISBLANK(F149), \"\", SUM(F148:F149))","v":3339}]
[]
["8.","Pankreatobilijiniai plastikiniai stentai su į vedimo sistema"]
["8.1.","Tulžies latakų plastikiniai stentai su į vedimo sistema",10,"vnt.",44,{"$f":"IF(ISBLANK(E153),\"\", PRODUCT(C153,E153))","v":440}]
["8.1.1.","Stento ilgis 5cm, 7cm, 9cm, 12 cm ar15 cm pagal poreikį",null,null,null,null,"Boston Scientific, Percuflex Amsterdam, Stent M00533610-M00533700, Stento ilgis 5,7,9,12 ar 15 cm pagal poreiki"]
["8.1.2.","Stenats tiesus 7 Fr arba 10 Fr pagal poreikį.",null,null,null,null,"Stentas tiesus 7 Fr arba 10 Fr pagal poreiki"]
["8.2.","Kasos stentų sistema ūmaus pankreatito prevencijai",20,"vnt.",150,{"$f":"IF(ISBLANK(E156),\"\", PRODUCT(C156,E156))","v":3000}]
["8.2.1.","Sterili, vienkartinė RX tipo sistema",null,null,null,null,"Boston Scientific, Advanix Pancreatic Stent, sterili, vienkartine RX tipo sistema"]
["8.2.2.","Stentas pagamintas iš poliuretano",null,null,null,null,"Stentas pagamintas is poliuretano"]
["8.2.3.","Turi rentgenokontrastinę juostelę",null,null,null,null,"Turi rentgenokontrastine juostele"]
["8.2.4.","Stentas turi atsišakojimus, užmautas ant kateterio, iš karto paruoštas įvedimui, su užrakinimo-atrakinimo sistema",null,null,null,null,"Stentas turi atsisakojimus, uzmautas ant kateterio, is karto paruostas ivedimui, su uzrakinimo-atrakinimo sistema"]
["8.2.5.","Galimas stento ilgis 2-18 cm",null,null,null,null,"Galimas stanto ilgis 2-18 cm"]
["8.2.6.","Stento dydis 3/4/5/7/10 Fr pagal poreikį",null,null,null,null,"Stento dydis 3/4/5/7/10 fr pagal poreiki"]
["8.2.7.","Pigtail arba tiesaus tipo",null,null,null,null,"Pigtail arba tiesaus tipo"]
["8.2.8.","Per visą stento ilgį išdėstytos „akutės“",null,null,null,null,"Per visa stento ilgi isdestytos \"akutes\""]
["8.2.9.","Sistemai tinka 0,021¨ ir 0,035¨ kreipiamoji styga - pravediklis",null,null,null,null,"Sistemai tinka 0,021¨ ir 0,035¨ kreipiamoji styga - pravediklis"]
["8.2.10.","Prie sistemos privalomas plastikinis laikiklis stygai fiksuoti, kuris tvirtinasi prie endoskopo",null,null,null,null,"Prie sistemos privalomas plastikinis laikiklis stygai fiksuoti, kuris tvirtinasi prie endoskopo"]
[null,null,null,null,"Suma be PVM",{"$f":"IF((COUNT(C153:C166)<>COUNT(F153:F166)),\"\", SUM(F153:F166))","v":3440},{"$f":"IF((COUNT(C153:C166)<>COUNT(F153:F166)),\"Neužpildytos visų objektų kainos\", \"\")","v":""}]
[null,null,null,null,"PVM suma",{"$f":"(3440*1.05)-3440","v":172}]
[null,null,null,null,"Suma su PVM",{"$f":"IF(ISBLANK(F168), \"\", SUM(F167:F168))","v":3612}]
[]
["9.","Papilatomas kartu su kreipiamąja viela"]
["9.1.","Papilatomas kartu su kreipiamąja viela",10,"vnt.",260,{"$f":"IF(ISBLANK(E172),\"\", PRODUCT(C172,E172))","v":2600}]
["9.1.1.","Sterili, vienkartinė pakuotė",null,null,null,null,"Boston Scientific, Jagtome, M0057300-M00573110, sterili vienkartine pakuote"]
["9.1.2.","akuotėje privalo būti sfinkterotomas ir kreipiamoji viela kartu",null,null,null,null,"Pakuoteje yra sfinkteratomas ir kreipiamoji viela kartu"]
["9.1.3.","Tinkantis 2,8 mm darbiniam kanalui",null,null,null,null,"Tinkantis 2,8 mm darbiniam kanalui"]
["9.1.4.","Kateterio ilgis ne trumpesnis nei 200 cm, pjaunamosios vielos ilgis 20-30 mm ilgio",null,null,null,null,"Kateterio ilgis 200 cm, pjaunamos vielos ilgis 20-30 mm ilgio"]
["9.1.5.","Trijų darbinių kanalų",null,null,null,null,"Triju darbiniu kanalu"]
["9.1.6.","Papiliatomo galiukas smailėjantis, galiuko ilgis 3-5 mm",null,null,null,null,"Papiliatomo galiukas smailejantis, galiuko ilgis 3-5 mm"]
["9.1.7.","Galimi vielos dydžiai 0,025¨ arba 0,035¨, ne trumpesnė nei 260 cm, rentgenokontrastinė per visa ilgį",null,null,null,null,"Galimi vielos dydziai 0,025'' arba 0,035'', 260 cm, rentgenokontrastine per visa ilgi"]
[null,null,null,null,"Suma be PVM",{"$f":"IF((COUNT(C172:C179)<>COUNT(F172:F179)),\"\", SUM(F172:F179))","v":2600},{"$f":"IF((COUNT(C172:C179)<>COUNT(F172:F179)),\"Neužpildytos visų objektų kainos\", \"\")","v":""}]
[null,null,null,null,"PVM suma",{"$f":"(2600*1.05)-2600","v":130}]
[null,null,null,null,"Suma su PVM",{"$f":"IF(ISBLANK(F181), \"\", SUM(F180:F181))","v":2730}]
[]
["10.","Papiliatominis peilis"]
["10.1.","Papiliatominis peilis",20,"vnt.",117,{"$f":"IF(ISBLANK(E185),\"\", PRODUCT(C185,E185))","v":2340}]
["10.1.1.","Vienkartinis",null,null,null,null,"Boston Scientific, Ultratome XL Triple- Lumen, M00535900-M00535930, vienkartinis"]
["10.1.2.","Sterili pakuotė",null,null,null,null,"Sterili pakuote"]
["10.1.3.","Tinkantis 2,8 mm darbiniam endoskopo kanalui",null,null,null,null,"Tinkantis 2,8 mm darbiniam endoskopo kanalui"]
["10.1.4.","Trijų kanalų",null,null,null,null,"Trijų kanale"]
["10.1.5.","Papilotomas su apsaugine danga ant pjovimo vielos",null,null,null,null,"Papilotomas su apsaugine danga ant pjovimo vielos"]
["10.1.6."," Kateterio ilgos 170-210 cm ilgio",null,null,null,null,"Kateterio ilgos 170-210 cm ilgio"]
["10.1.7.","Galiuko ilgis  3-5 mm su  rengenokontrastine žyme",null,null,null,null,"Galiuko ilgis  3-5 mm su  rengenokontrastine žyme"]
["10.1.8.","Tinka darbui su 0,035“ styga – pravedikliu",null,null,null,null,"Tinka darbui su 0,035“ styga – pravedikliu"]
[null,null,null,null,"Suma be PVM",{"$f":"IF((COUNT(C185:C193)<>COUNT(F185:F193)),\"\", SUM(F185:F193))","v":2340},{"$f":"IF((COUNT(C185:C193)<>COUNT(F185:F193)),\"Neužpildytos visų objektų kainos\", \"\")","v":""}]
[null,null,null,null,"PVM suma",{"$f":"(2340*1.05)-2340","v":117}]
[null,null,null,null,"Suma su PVM",{"$f":"IF(ISBLANK(F195), \"\", SUM(F194:F195))","v":2457}]
[]
["11.","Balioninis tulžies latakų akmenų šalinimo kateteris"]
["11.1.","Balioninis tulžies latakų akmenų šalinimo kateteris",15,"vnt.",130,{"$f":"IF(ISBLANK(E199),\"\", PRODUCT(C199,E199))","v":1950}]
["11.1.1.","Vienkartinis",null,null,null,null,"Boston Scientific, Extrator Pro XL Balloon cath, M00547100-M00547150, vienkartinis"]
["11.1.2.","Sterili pakuotė",null,null,null,null,"Sterili pakuote"]
["11.1.3.","Trijų spindžių",null,null,null,null,"Trijų spindžių"]
["11.1.4.","Tinkantis 2,8 mm darbiniam endoskopo kanalui",null,null,null,null,"Tinkantis 2,8 mm darbiniam endoskopo kanalui"]
["11.1.5.","Ne trumpesnis nei 200 cm",null,null,null,null,"Ne trumpesnis nei 200 cm"]
["11.1.6.","Tinka darbui su 0,035“ styga – pravedikliu",null,null,null,null,"Tinka darbui su 0,035“ styga – pravedikliu"]
["11.1.7.","Pripūsto balionėlio galimi dydžiai pagal poreikį 9-12 mm, 12-15mm, 15-18mm ar ekvivalentiški",null,null,null,null,"Pripūsto balionėlio galimi dydžiai pagal poreikį 9-12 mm, 12-15mm, 15-18mm ar ekvivalentiški"]
["11.1.8.","Injekcijos išėjimo anga distaliai arba proksimaliai balionėlio",null,null,null,null,"Injekcijos išėjimo anga distaliai arba proksimaliai balionėlio"]
[null,null,null,null,"Suma be PVM",{"$f":"IF((COUNT(C199:C207)<>COUNT(F199:F207)),\"\", SUM(F199:F207))","v":1950},{"$f":"IF((COUNT(C199:C207)<>COUNT(F199:F207)),\"Neužpildytos visų objektų kainos\", \"\")","v":""}]
[null,null,null,null,"PVM suma",{"$f":"(1950*1.05)-1950","v":97.5}]
[null,null,null,null,"Suma su PVM",{"$f":"IF(ISBLANK(F209), \"\", SUM(F208:F209))","v":2047.5}]
[]
["12.","Styga - pravediklis"]
["12.1.","Styga - pravediklis",5,"vnt.",null,{"$f":"IF(ISBLANK(E213),\"\", PRODUCT(C213,E213))","v":""}]
["12.1.1.","Sterilus"]
["12.1.2.","Vienkartinė pakuotė"]
["12.1.3.","Rinkinyje yra viena viela dviem darbiniais rentgenokontrastiniais galais"]
["12.1.4.","Viela 0,035¨ skersmens"]
["12.1.5.","260 (±5)cm arba 450 (±5) cm ilgio"]
["12.1.6.","Turi  rentgenokontrastines žymes"]
["12.1.7.","Tinka sfinkterotomijai"]
["12.1.8.","Rinkinyje turi būti stygos laikiklis"]
[null,null,null,null,"Suma be PVM",{"$f":"IF((COUNT(C213:C221)<>COUNT(F213:F221)),\"\", SUM(F213:F221))","v":""},{"$f":"IF((COUNT(C213:C221)<>COUNT(F213:F221)),\"Neužpildytos visų objektų kainos\", \"\")","v":"Neužpildytos visų objektų kainos"}]
[null,null,null,null,"PVM suma"]
[null,null,null,null,"Suma su PVM",{"$f":"IF(ISBLANK(F223), \"\", SUM(F222:F223))","v":""}]
[]
["13.","Krepšelis akmenims traukti iš tulžies takų"]
["13.1.","Krepšelis akmenims traukti iš tulžies takų",20,"vnt.",null,{"$f":"IF(ISBLANK(E227),\"\", PRODUCT(C227,E227))","v":""}]
["13.1.1.","Vienakrtins"]
["13.1.2.","Sterili pakuotė"]
["13.1.3.","190-200 cm ilgio"]
["13.1.4.","Tinkantis 2,8 mm darbiniam endoskopo kanalui"]
["13.1.5.","Atidaryto krepšelio plotis 20 - 22 mm"]
["13.1.6.","Krepšelis supintas iš 4 vielučių"]
["13.1.7.","Rotuojamas"]
["13.1.8.","Suderinmas  su avariniu krepšelių šalinio rinkiniu"]
["13.1.9.","Su vedlio fiksatoriumi distaliniame gale"]
[null,null,null,null,"Suma be PVM",{"$f":"IF((COUNT(C227:C236)<>COUNT(F227:F236)),\"\", SUM(F227:F236))","v":""},{"$f":"IF((COUNT(C227:C236)<>COUNT(F227:F236)),\"Neužpildytos visų objektų kainos\", \"\")","v":"Neužpildytos visų objektų kainos"}]
[null,null,null,null,"PVM suma"]
[null,null,null,null,"Suma su PVM",{"$f":"IF(ISBLANK(F238), \"\", SUM(F237:F238))","v":""}]
[]
["14.","Krepšelių avarinis šalinimo rinkinys"]
["14.1.","Metalinis šarvas",1,"vnt.",null,{"$f":"IF(ISBLANK(E242),\"\", PRODUCT(C242,E242))","v":""}]
["14.1.1.","Daugkartinis"]
["14.1.2.","Ilgis 900-950 mm"]
["14.2.","Rankena",1,"vnt.",null,{"$f":"IF(ISBLANK(E245),\"\", PRODUCT(C245,E245))","v":""}]
["14.2.1.","Daugkartinė"]
[null,null,null,null,"Suma be PVM",{"$f":"IF((COUNT(C242:C246)<>COUNT(F242:F246)),\"\", SUM(F242:F246))","v":""},{"$f":"IF((COUNT(C242:C246)<>COUNT(F242:F246)),\"Neužpildytos visų objektų kainos\", \"\")","v":"Neužpildytos visų objektų kainos"}]
[null,null,null,null,"PVM suma"]
[null,null,null,null,"Suma su PVM",{"$f":"IF(ISBLANK(F248), \"\", SUM(F247:F248))","v":""}]
[]
["15.","Metalinės kabutės sistema lanksčiajai endoskopijai"]
["15.1.","Metalinės kabutės sistema lanksčiajai endoskopijai",5,"vnt.",null,{"$f":"IF(ISBLANK(E252),\"\", PRODUCT(C252,E252))","v":""}]
["15.1.1.","Endoskopu uždedama kabutės (klipo) sistema, skirta virškinamo trakto organų pažeistų sienelių audinių suėmimui ir užspaudimui"]
["15.1.2.","Sistemos rinkinį turi sudaryti: aplikavimo galvutė (kamštelis) su užtaisytu  klipu, ritė su siūlu ir rankinis sraigtas kabutės atpalaidavimui"]
["15.1.3.","Užspaudimo sistemos kabutė turi būti pagaminta iš nitinolio ar lygiaverčio metalo lydinio"]
["15.1.4.","Aplikacijos galvutės (kamšteliai) turi būti  3 ir 6 mm gylio"]
["15.1.5.","Ritės siūlo ilgis turi būti 165 cm ir 220 cm (± 5cm)"]
["15.1.6.","Kabučių danteliai turi būti kelių tipų: smailūs, smailūs ilgi (skrandžio sienelėms) ir buki (hemostazei)"]
["15.1.7.","Sistemos pritaikytos 8,5-14 mm diametro endoskopams pasirinktinai"]
["15.1.8.","Sistema sterili, vienkartinio naudojimo"]
[null,null,null,null,"Suma be PVM",{"$f":"IF((COUNT(C252:C260)<>COUNT(F252:F260)),\"\", SUM(F252:F260))","v":""},{"$f":"IF((COUNT(C252:C260)<>COUNT(F252:F260)),\"Neužpildytos visų objektų kainos\", \"\")","v":"Neužpildytos visų objektų kainos"}]
[null,null,null,null,"PVM suma"]
[null,null,null,null,"Suma su PVM",{"$f":"IF(ISBLANK(F262), \"\", SUM(F261:F262))","v":""}]
[]
["16.","Metalinis biliarinis stentas"]
["16.1.","Metalinis biliarinis stentas",4,"vnt.",1000,{"$f":"IF(ISBLANK(E266),\"\", PRODUCT(C266,E266))","v":4000}]
["16.1.1.","Metalinis biliarinis stentas",null,null,null,null,"Boston Scientific, Wallflex RX Fully, Partially or Non-covered stent, M00574210-M00576790, metalinis biliarinis stentas"]
["16.1.2.","Pintas biliarinis stentas WALLFLEX RX",null,null,null,null,"Pintas biliarinis stentas Wallflex RX"]
["16.1.3.","Pilnai ar dalinai dengtas arba nedengtas permalumo plėvele (klinikiniais tyrimais įrodyta, kad dėka šios medžiagos stentas neužsikemša ir sienelės „neapauga“)",null,null,null,null,"Pilnai ar dalinai dengtas arba nedengtas permalumo plevele "]
["16.1.4.","Pagamintas iš patentuotos Platinol medžiagos",null,null,null,null,"Pagamintas is patentuotos Platinol medziagos"]
["16.1.5.","Atsparus deformacijoms, labai lankstus",null,null,null,null,"Atsparus deformacijoms, labai lankstus"]
["16.1.6.","Su atraumatiniais galais",null,null,null,null,"Su atraumatiniais galais"]
["16.1.7.","Su Turi ištraukimo kilputę",null,null,null,null,"Turi istraukimo kilpute"]
["16.1.8.","Įvedus galima kooreguoti ",null,null,null,null,"Ivedus galima kooreguoti"]
["16.1.9.","Turi antimigracinę formą ",null,null,null,null,"Turi antimigracine forma"]
["16.1.10.","Yra įvedimo sistema",null,null,null,null,"Yra ivedimo sistema"]
["16.1.11.","Su rentgeno kontrastinėmis žymėmis",null,null,null,null,"Su rentgenokontrastinemis zymemis"]
["16.1.12.","Galima atlikti MRI tyrimą",null,null,null,null,"Galima atlikti MRI tyrima"]
["16.1.13.","Organizme gali būti iki 12 mėn.",null,null,null,null,"Organizme gali buti iki 12 men"]
["16.1.14.","8 mm arba 10 mm skersmens",null,null,null,null,"8 mm arba 10 mm skersmens"]
["16.1.15.","Stento ilgis 40/60/80 mm.",null,null,null,null,"Stento ilgis 40/60/80 mm"]
[null,null,null,null,"Suma be PVM",{"$f":"IF((COUNT(C266:C281)<>COUNT(F266:F281)),\"\", SUM(F266:F281))","v":4000},{"$f":"IF((COUNT(C266:C281)<>COUNT(F266:F281)),\"Neužpildytos visų objektų kainos\", \"\")","v":""}]
[null,null,null,null,"PVM suma",{"$f":"(4000*1.05)-4000","v":200}]
[null,null,null,null,"Suma su PVM",{"$f":"IF(ISBLANK(F283), \"\", SUM(F282:F283))","v":4200}]
[]
["17.","Endoskopiniai priedai bronchoskopijoms"]
["17.1.","Biopsinės žnyplės bronchoskopijai ",2,"vnt.",null,{"$f":"IF(ISBLANK(E287),\"\", PRODUCT(C287,E287))","v":""}]
["17.1.1.","Daugkartinio naudojimo"]
["17.1.2.","Sterilizuojamos"]
["17.1.3.","Darbinis ilgis 1000 - 1050 mm"]
["17.1.4.","Tinkamos endoskopui su 2,0mm darbiniu kanalu"]
["17.1.5.","Kaušeliai ovalo formos, pasisukantys"]
["17.2.","Citologinai šepetėlai ",5,"vnt.",null,{"$f":"IF(ISBLANK(E293),\"\", PRODUCT(C293,E293))","v":""}]
["17.2.1.","Dabinis ilgis 1150-1200mm"]
["17.2.2.","Šepetėlio diametas 2mm"]
["17.2.3.","Šepetėlio igis 10 mm"]
["17.2.4.","Tinkamos endoskopui su 2,0mm darbiniu kanalu"]
[null,null,null,null,"Suma be PVM",{"$f":"IF((COUNT(C287:C297)<>COUNT(F287:F297)),\"\", SUM(F287:F297))","v":""},{"$f":"IF((COUNT(C287:C297)<>COUNT(F287:F297)),\"Neužpildytos visų objektų kainos\", \"\")","v":"Neužpildytos visų objektų kainos"}]
[null,null,null,null,"PVM suma"]
[null,null,null,null,"Suma su PVM",{"$f":"IF(ISBLANK(F299), \"\", SUM(F298:F299))","v":""}]

{"sheet":"Subtiekėjai","index":1,"n_rows":100,"n_cols":9,"rows_kept":100,"cut":false,"hidden":false,"merged":[[32,0,32,3],[32,4,32,9],[19,0,19,10],[16,1,16,3],[15,1,15,3],[22,0,22,9],[23,0,23,9],[25,0,25,9],[29,0,29,3],[29,4,29,9],[17,1,17,3],[17,4,17,5],[17,6,17,7],[17,8,17,9],[21,0,21,3],[21,4,21,9],[14,1,14,3],[15,4,15,5],[16,4,16,5],[8,0,8,1],[8,2,8,4],[8,5,8,7],[12,6,12,7],[13,6,13,7],[14,6,14,7],[15,6,15,7],[16,6,16,7],[13,1,13,3],[12,1,12,3],[12,4,12,5],[13,4,13,5],[14,4,14,5],[8,8,8,9],[10,0,10,9],[6,0,6,1],[6,2,6,4],[6,5,6,7],[6,8,6,9],[7,0,7,1],[7,2,7,4],[7,5,7,7],[7,8,7,9],[1,0,1,10],[5,0,5,1],[5,2,5,4],[5,5,5,7],[5,8,5,9],[4,0,4,1],[4,2,4,4],[4,5,4,7],[4,8,4,9],[3,0,3,1],[3,2,3,4],[3,5,3,7],[3,8,3,9],[12,8,12,9],[13,8,13,9],[14,8,14,9],[15,8,15,9],[16,8,16,9]]}
[]
["Subtiekėjai ir jiems perduodama vykdyti pirkimo sutarties dalis:"]
[]
["Eil. Nr",null,"Subtiekėjo pavadinimas",null,null,"Pirkimo objekto dalies, perduodamos vykdyti subtiekėjui, aprašymas",null,null,"Procentas perduodamos vykdyti pirkimo objekto dalies nuo pasiūlymo kainos su PVM (pildoma, jei ūkio subjektas vykdys sutartį)"]
[]
[]
[]
[]
[]
[]
["Kartu su pasiūlymu pateikiami šie dokumentai:"]
[]
["Eil.Nr.","Dokumentas",null,null,"Ar dokumnetas konfidencialus? (Taip/Ne)",null,"Prisegtos bylos (failo) pavadinimas ",null,"Paaiškinimas, kokia konkreti informacija dokumente yra konfidenciali"]
[1,"Igaliojimas pasirasyti dokumentus",null,null,"Ne",null,"Igaliojimas pasirasyti dokumentus"]
[2,"Gamintojo igaliojimai",null,null,"TAIP",null,"Gamintoju igaliojimai",null,"komercines paslaptis"]
[3,"Sertifikatai",null,null,"TAIP",null,"Sertifikatai",null,"komercines paslaptis"]
[4,"Katalogai",null,null,"TAIP",null,"Katalogai",null,"komercines paslaptis"]
[]
[]
["Pasirašydamas šį pasiūlymą, tvirtintu, kad:\n1) pasiūlymo dokumentuose pateikti duomenys yra tikri;\n2) siūlomas Pirkimo objektas visiškai atitinka Pirkimo dokumentuose nustatytus reikalavimus;\n3) sutinku su visomis Pirkimo dokumentuose nustatytomis sąlygomis;\n4) pasiūlymas galioja iki termino, nustatyto Pirkimo dokumentuose; \n5) mes esame / nesame (nereikalingą išbraukti) laikomi asocijuotais (susijusiais) su Perkančiuoju subjektu pagal Lietuvos Respublikoje galiojančių teisės aktų (Lietuvos Respublikos pelno mokesčio, Lietuvos Respublikos pridėtinės vertės mokesčio ir Lietuvos Respublikos gyventojų pajamų mokesčio įstatymų) nuostatas; \n6) savo pasiūlymo galiojimą užtikrinsiu pagal Specialiųjų sąlygų 6.1 punktą (jei taikoma)."]
[]
["Pasiūlymo galiojimo užtikrinimui pateikiame :"]
[]
["(Nurodyti užtikrinimo būdą, dydį, dokumentus)"]
[]
["\nPasiūlymas galioja iki termino, nustatyto pirkimo dokumentuose.\n\nPasiūlymo neatskiriama dalis yra (rašoma, jeigu buvo reikalauta prie pasiūlymo pridėti atitinkamą dokumentą)"]
[]
[]
[]
["Tiekėjo arba jo įgalioto asmens pareigų pavadinimas",null,null,null,"Viešųjų pirkimų vadovė"]
[]
[]
["Pasirašančio asmens vardas ir pavardė",null,null,null,"Sandra Čaikė"]
[]
[]
[]
[]
[]
[]
[]
[]
[]
[]
[]
[]
[]
[]
[]
[]
[]
[]
[]
[]
[]
[]
[]
[]
[]
[]
[]
[]
[]
[]
[]
[]
[]
[]
[]
[]
[]
[]
[]
[]
[]
[]
[]
[]
[]
[]
[]
[]
[]
[]
[]
[]
[]
[]
[]
[]
[]
[]
[]
[]
[]
[]
[]
[]
[]
[]
["3063 2019-10-17 13:27:17"]